Cogmind - Beta 14 @@@ ROGUE MODE // 2024.11.07 @ 03:53:59 Player: laeb2 Result: Destroyed by G-67 Veteran with Field Laser Performance ------------- Evolutions (6) 3000 Regions Visited (17) 3400 Robots Destroyed (195) 975 Value Destroyed (9685) 9685 Prototype IDs (15) 300 Alien Tech Used (0) 0 Bonus (7070) 7070 TOTAL SCORE: 24430 Bonus ------- High Alert Combat Kills 703 Follower Combat Kills 2476 Entered Garrisons 800 Used RIF Installer 1500 Entered DSFs 500 Met Zhirov 300 Built Enhanced Grunts 300 A7 Reached Mainframe 300 Met R17 at Cetus 500 Read Decrypted Archives 300 Friendly Fire -609 Cogmind --------- Core Integrity 0/1150 Matter 295/300 Energy 170/170 System Corruption 0% Temperature Cool (21) Movement Treading (160) Location -4/Garrison Parts ------- > --- POWER (1) -------- Light Antimatter Reactor > --- PROPULSION (4) --- Improved Heavy Treads Improved Heavy Treads > --- UTILITY (10) ----- Improved Heat Sink Advanced Signal Interpreter Melee Analysis Suite Melee Analysis Suite Improved Target Analyzer Improved Target Analyzer Improved Target Analyzer Improved System Shield Relay Coupler [Swarmer] (37) Relay Coupler [Cutter] (35) > --- WEAPON (4) ------- Carbide Saw Spear > --- INVENTORY (5) ---- Flexi-carbon Leg Relay Coupler [Sentry] (20) Long-range Missile Launcher Advanced Datajack Improved Plasma Cutter Peak State ------------ > --- POWER ------------ Quantum Reactor > --- PROPULSION ------- Enhanced Flexi-carbon Leg Enhanced Flexi-carbon Leg Myomer Leg > --- UTILITY ---------- Enhanced Optical Array Advanced Signal Interpreter Melee Analysis Suite Advanced Melee Analysis Suite Improved Target Analyzer Improved Target Analyzer Centrium Medium Armor Plating Centrium Medium Armor Plating Centrium Medium Armor Plating Experimental Thermal Shield > --- WEAPON ----------- Advanced Variable Charge Gun Phasing Sabre Lance > --- INVENTORY -------- Advanced KE Penetrator Datajack Improved Remote Datajack Improved Plasma Cutter Lance [Rating: 116] Favorites ----------- Power Light Deuterium Engine Engine Light Deuterium Engine Power Core Neutrino Core Reactor Light Antimatter Reactor Propulsion Light Treads Treads Light Treads Leg Carbon-fiber Leg Wheel Armored Wheel Hover Unit Improved Hover Unit Flight Unit Nuclear Pulse Array Utility Improved Target Analyzer Device Improved Cooling System Storage Large Storage Unit Processor Improved Target Analyzer Hackware Relay Coupler [Brawler] Protection Improved Medium Armor Plating Weapon Lance Energy Gun Particle Gun Energy Cannon Heavy Plasma Cannon Ballistic Gun High-powered Shotgun Launcher Grenade Launcher Special Weapon Remote Datajack Slashing Weapon Katana Piercing Weapon Lance Special Melee Weapon Datajack Build | -11 -10 -9 -8 -8 -8 -8 -7 -7 -6 -6 -5 -5 -5 -5 -5 -4 -4 ------- Run | Yrd Mat Mat Mat Gar Mat Gar Fac DSF Fac Gar Fac Ext Cet Arc Hub Fac Gar Slots Evolved 12 | . . 2 2 . . . 2 . 2 . 2 . . . . 2 . Power . | . . . . . . . . . . . . . . . . . . Propulsion 2 | . . 1 . . . . . . . . . . . . . 1 . Utility 8 | . . . 2 . . . 2 . 2 . 2 . . . . . . Weapon 2 | . . 1 . . . . . . . . . . . . . 1 . Parts Attached 315 | 9 18 19 5 42 13 16 1 10 17 17 18 41 23 5 18 26 17 Power 21 | 1 3 1 . 2 . 1 . 1 . 2 1 2 1 . 1 3 2 Engine 13 | 1 3 1 . 2 . . . 1 . 2 1 1 . . . 1 . Core 3 | . . . . . . 1 . . . . . 1 . . . . 1 Reactor 5 | . . . . . . . . . . . . . 1 . 1 2 1 Propulsion 75 | 4 6 5 . 8 4 2 . 1 3 1 3 10 9 . 4 7 8 Treads 35 | 2 6 5 . 8 4 1 . . 2 . . . 2 . 1 2 2 Leg 24 | 2 . . . . . . . . . . . 10 7 . 3 . 2 Wheel 4 | . . . . . . 1 . 1 1 1 . . . . . . . Hover 3 | . . . . . . . . . . . 3 . . . . . . Flight 9 | . . . . . . . . . . . . . . . . 5 4 Utility 107 | 2 4 5 4 11 7 8 1 4 7 1 11 7 5 3 11 11 5 Device 34 | 1 2 4 . 3 . . . 3 4 1 2 1 2 . 3 7 1 Storage 2 | 1 1 . . . . . . . . . . . . . . . . Processor 20 | . . . 1 2 . . . . . . 5 2 . . 4 4 2 Hackware 27 | . 1 . . 1 7 7 . . . . 4 2 . 3 . . 2 Protection 24 | . . 1 3 5 . 1 1 1 3 . . 2 3 . 4 . . Artifact . | . . . . . . . . . . . . . . . . . . Weapon 112 | 2 5 8 1 21 2 5 . 4 7 13 3 22 8 2 2 5 2 Energy Gun 6 | . . 1 . 2 . . . . 1 1 . . 1 . . . . Energy Cannon 6 | . . 2 . . . . . . 3 . 1 . . . . . . Ballistic Gun 41 | 2 3 5 1 9 . 2 . 2 3 8 1 1 3 . . 1 . Ballistic Cannon . | . . . . . . . . . . . . . . . . . . Launcher 10 | . 1 . . 3 1 1 . 2 . 1 . . . . 1 . . Special Weapon 12 | . 1 . . 3 1 2 . . . . . 4 1 . . . . Impact Weapon . | . . . . . . . . . . . . . . . . . . Slashing Weapon 11 | . . . . 4 . . . . . 3 . 2 . . . . 2 Piercing Weapon 18 | . . . . . . . . . . . 1 8 3 1 1 4 . Special Melee Weapon 8 | . . . . . . . . . . . . 7 . 1 . . . Unidentified Prototypes 13 | . . 1 . . . . . . 1 . . . 6 . 2 3 . Parts Lost 74 | . 3 2 . 3 . 1 . 6 . 26 . 9 . 1 10 3 10 Power 11 | . 1 . . 1 . . . 1 . 3 . 1 . . 2 1 1 Propulsion 13 | . . 1 . . . . . 2 . 3 . 2 . 1 1 . 3 Utility 23 | . 1 . . 1 . . . . . 8 . 5 . . 4 2 2 Weapon 27 | . 1 1 . 1 . 1 . 3 . 12 . 1 . . 3 . 4 Highest Loss Streak 17 | . 1 2 . 1 . 1 . 2 . 17 . 3 . 1 5 2 5 To Critical Strikes 2 | . . . . . . . . 1 . . . 1 . . . . . Average Slot Usage (%) 91 | . 98 99 98 99 97 97 90 90 94 66 33 91 99 96 95 80 76 Engine 4 | . 12 11 9 8 9 . . 1 6 3 . 3 . . . . . Core 1 | . . . . . . 5 7 5 . . . 1 4 . . . . Treads 15 | . 25 32 27 27 27 26 15 11 8 1 . . . . 3 1 4 Leg 3 | . 2 . . . . . . . . . . 13 16 13 12 . 1 Wheel 1 | . . . . . . . 7 7 6 8 . . . . . . . Device 6 | . 3 10 . 9 6 . . 3 21 14 3 5 4 5 4 5 2 Storage 6 | . 14 11 9 9 9 9 7 7 6 5 . . . . . . . Processor 9 | . . . 5 2 . . . . . . 12 27 35 24 27 32 35 Hackware 11 | . 10 . . 1 16 25 23 22 13 11 9 15 4 14 15 5 9 Protection 5 | . . . 19 13 2 1 5 11 10 1 . 3 12 12 7 3 . Ballistic Gun 11 | . 27 26 27 21 9 7 7 5 12 13 1 . 1 . . . . Special Weapon 2 | . . . . 2 8 9 7 . . . . . 2 . . . . Slashing Weapon 3 | . . . . 1 9 9 7 7 . . . 3 5 5 4 . 6 Piercing Weapon 2 | . . . . . . . . . . . 1 8 6 11 8 17 8 Peak Build Rating 116 | 7 10 18 27 32 36 45 48 48 60 60 53 85 116 112 106 100 100 Average Rating 45 | 4 9 13 24 29 32 40 47 44 56 40 25 72 96 102 95 84 79 On Entrance 44 | . 7 8 16 25 32 36 44 48 41 60 6 53 85 110 100 32 100 Naked Turns . | . . . . . . . . . . . . . . . . . . Heaviest Build 70 | 14 29 37 55 52 50 53 52 58 70 63 14 39 54 52 45 22 21 Greatest Support 150 | 40 40 60 60 60 62 60 12 12 28 40 14 60 81 81 71 150 150 Greatest Overweight (x) 7 | . 1 . . . . 3 4 4 5 7 4 2 . . . 1 6 Average Overweight (x) . | . . . . . . . 3 3 2 . . . . . . . . Largest Inventory Capacity 15 | 8 15 15 15 15 15 15 15 15 15 15 5 5 5 5 5 5 5 Average Capacity 11 | 7 14 15 15 15 15 15 15 15 15 13 5 5 5 5 5 5 5 Most Carried 15 | 7 15 15 15 15 15 15 15 15 15 15 5 5 5 5 5 5 5 Average Carried 11 | 4 13 14 14 14 14 14 15 14 14 13 4 4 4 4 4 4 4 Final Capacity 15 | 8 15 15 15 15 15 15 15 15 15 5 5 5 5 5 5 5 5 Final Carried 15 | 6 15 15 15 15 13 15 15 15 15 5 5 5 5 5 4 5 5 Class Distribution -------------------- 22% | Scavenger-Gladiator 22% | Bothacker-Mutant 20% | Mutant 12% | Scavenger-Tank 5% | Scavenger-Mutant 4% | Gunner 3% | Scavenger-Gunner 3% | Tank Dominant Class ---------------- Mutant | -10/Materials Gunner | -9/Materials Tank | -8/Materials Scavenger-Tank | -8/Garrison Bothacker-Mutant | -8/Materials Bothacker-Mutant | -8/Garrison Bothacker-Mutant | -7/Factory Mutant | -7/DSF Scavenger-Tank | -6/Factory Mutant | -6/Garrison Mutant | -5/Factory Scavenger-Gladiator | -5/Extension Scavenger-Gladiator | -5/Cetus Scavenger-Gladiator | -5/Archives Scavenger-Gladiator | -5/Hub_04(d) Scavenger-Gladiator | -4/Factory Scavenger-Gladiator | -4/Garrison Resources | -11 -10 -9 -8 -8 -8 -8 -7 -7 -6 -6 -5 -5 -5 -5 -5 -4 -4 ----------- Run | Yrd Mat Mat Mat Gar Mat Gar Fac DSF Fac Gar Fac Ext Cet Arc Hub Fac Gar Matter Collected 6545 | 378 658 419 50 1357 291 621 25 257 252 485 148 589 325 60 177 298 155 Remotely . | . . . . . . . . . . . . . . . . . . Salvage Created 10128 | 220 805 811 . 1216 184 678 . 282 282 603 148 850 49 109 1140 1887 864 Parts 473 | 17 41 54 . 63 12 23 . 13 13 27 16 23 3 11 60 59 38 Haulers Intercepted 9 | . 2 2 . . . . . . . . . . . . 2 3 . Recyclers Shooed 8 | 1 . 1 . . . . . . . . . . . . . 6 . Parts Field Recycled . | . . . . . . . . . . . . . . . . . . Retrieved Matter . | . . . . . . . . . . . . . . . . . . Parts Self-Destructed . | . . . . . . . . . . . . . . . . . . Prevented . | . . . . . . . . . . . . . . . . . . Kills | -11 -10 -9 -8 -8 -8 -8 -7 -7 -6 -6 -5 -5 -5 -5 -5 -4 -4 ------- Run | Yrd Mat Mat Mat Gar Mat Gar Fac DSF Fac Gar Fac Ext Cet Arc Hub Fac Gar Combat Hostiles Destroyed 141 | . 17 13 . 32 2 7 . 8 4 16 2 5 1 . 12 12 10 Melee 42 | . . . . . . 1 . 1 . 1 2 5 . . 12 11 9 Guns 72 | . 14 8 . 27 1 6 . 2 1 11 . . 1 . . 1 . Cannons 10 | . . 5 . . . . . . 3 2 . . . . . . . AOE 15 | . 3 . . 5 1 . . 4 . 2 . . . . . . . Classes Destroyed 17 | 2 5 2 . 4 . . . . . . 1 . . . 1 1 1 Worker 2 | . . . . . . . . . . . . . . . . 2 . Builder 2 | . . . . . . . . . . . 1 1 . . . . . Tunneler 8 | 7 . . . . . . . . 1 . . . . . . . . Hauler 9 | . 2 2 . . . . . . . . . . . . 2 3 . Recycler 14 | 1 . 3 . . . . . . . . . 3 . . . 7 . Mechanic 2 | . . . . . . . . . . . . . . . 1 1 . Operator 3 | . 1 . . . . . . . . . . 1 . . 1 . . Watcher 11 | . 2 3 . . 1 . . . . . 1 1 . . 3 . . Swarmer 30 | . 3 4 . 6 . 1 . 3 . 9 . . . . . 4 . Cutter 3 | . . . . . . . . . . . . . . . . . 3 Grunt 61 | . 14 4 . 12 2 2 . 2 3 6 2 3 . . 2 3 6 Brawler 4 | . . . . 2 . . . . . 1 . . . . 1 . . Duelist 4 | . . 1 . . 1 . . . . . . 1 . . 1 . . Sentry 15 | . . 4 . 5 . 2 . . 1 . . 1 . . 1 1 . Specialist 7 | . . . . 2 . . . 3 . . . . . . 2 . . Hunter 3 | . . . . 1 1 . . . . . . . . . 1 . . Programmer 16 | . . . . 4 . 3 . . . . . . . . 4 4 1 Cetus Guard 1 | . . . . . . . . . . . . . 1 . . . . Best Kill Streak 8 | 4 3 5 . 4 2 3 . 2 2 8 2 2 1 . 8 5 5 Combat Bots Only 8 | . 3 3 . 4 2 3 . 2 2 8 2 1 1 . 7 4 5 Max Kills in Single Turn 3 | 1 3 2 . 3 3 1 . 1 1 3 1 1 1 . 1 1 1 Gunslinging 1 | . . . . . . . . . . 1 . . . . . . . Exploded 3 | . 3 . . 3 1 . . 1 . 2 . . . . . . . Melee 1 | . . . . . . 1 . 1 . 1 1 1 . . 1 1 1 Uniques/NPCs Destroyed . | . . . . . . . . . . . . . . . . . . Combat | -11 -10 -9 -8 -8 -8 -8 -7 -7 -6 -6 -5 -5 -5 -5 -5 -4 -4 -------- Run | Yrd Mat Mat Mat Gar Mat Gar Fac DSF Fac Gar Fac Ext Cet Arc Hub Fac Gar Hostile Shots Fired 1103 | . 82 30 . 174 7 54 . 114 44 215 8 49 17 . 127 54 128 Missed 295 | . 19 3 . 50 1 14 . 40 12 53 3 12 3 . 38 24 23 Damage Taken 15755 | . 782 440 . 1809 275 660 . 1433 481 2935 112 1102 361 710 1961 736 1958 Core 3295 | . 110 . . 249 29 76 . 155 5 833 71 209 . 52 344 126 1036 Absorbed by Shields 204 | . . . . . . . . . . 26 . 67 73 . . . 38 Reduced by Siege Mode 12 | . . . . . . . . . . . . . . . . 12 . Redirected to Shielding 47 | . . . . . . . . . . . . . . . 17 30 . Ignored by Resistances 206 | . . . . . . . . . . . . . . . . 73 133 Core Remaining (%) 57 | 100 56 100 . . . 35 . 77 . 1 . . . . 32 . . Volleys Fired 481 | 22 95 42 . 85 27 84 . 30 13 60 . 2 12 . . 9 . Largest 3 | 2 2 3 . 3 1 1 . 2 3 3 . 1 1 . . 1 . Hottest 150 | 40 100 103 . 113 30 35 . 58 150 135 . 33 35 . . 35 . Shots Fired 919 | 44 184 125 . 216 28 84 . 31 38 146 . 2 12 . . 9 . Gun 783 | 44 179 94 . 206 5 43 . 23 26 140 . 2 12 . . 9 . Cannon 48 | . . 31 . . . . . . 12 5 . . . . . . . Launcher 17 | . 1 . . 5 1 2 . 7 . 1 . . . . . . . Special 71 | . 4 . . 5 22 39 . 1 . . . . . . . . . Kinetic 767 | 44 179 94 . 193 5 43 . 23 26 137 . 2 12 . . 9 . Thermal 68 | . 4 31 . 13 . . . . 12 8 . . . . . . . Explosive 17 | . 1 . . 5 1 2 . 7 . 1 . . . . . . . Electromagnetic . | . . . . . . . . . . . . . . . . . . Robot Hit Streak 15 | 6 11 13 . 15 7 10 . 7 14 10 . 4 7 . . 6 . Robot Miss Streak 7 | 2 4 3 . 5 3 6 . 2 2 7 . . 3 . . 1 . Penetration Max 2 | . . . . . . 2 . . . . . . 1 . . . . Secondary Targets 7 | . 1 . . 4 . . . . . 2 . . . . . . . Max Gunslinging Chain 1 | . 1 . . 1 . . . . . 1 . . . . . . . Shots Hit Robots 834 | 26 113 76 . 148 21 64 . 25 23 91 8 56 7 3 48 78 47 Core Hits 360 | 12 46 33 . 64 7 24 . 17 10 37 3 14 4 3 28 36 22 Critical Kills 7 | . 1 . . 3 . 2 . . . . . . . . . 1 . Critical Parts Destroyed 18 | 1 . 1 . 3 . 7 . 2 . 1 . 1 1 . . 1 . Critical Strikes 66 | 1 1 1 . 6 . 10 . 2 . 1 3 5 1 . 9 15 11 Destroy 26 | 1 1 1 . 6 . 9 . 2 . 1 . 1 1 . . 3 . Sever 11 | . . . . . . 1 . . . . . 1 . . 4 . 5 Impale 29 | . . . . . . . . . . . 3 3 . . 5 12 6 Melee Attacks 378 | . . . . 17 3 47 . 3 . 7 8 79 . 5 67 87 55 Impact . | . . . . . . . . . . . . . . . . . . Slashing 138 | . . . . 17 3 47 . 3 . 7 . 3 . 4 33 . 21 Piercing 214 | . . . . . . . . . . . 8 50 . 1 34 87 34 Sneak Attacks 53 | . . . . . . . . 1 . . 2 30 . . 4 16 . Combat Hostiles 3 | . . . . . . . . 1 . . . . . . . 2 . Follow-up Attacks 48 | . . . . . . . . . . . . 3 . . 9 23 13 Damage Inflicted 19576 | 285 1336 1115 . 3062 363 1075 . 1063 587 1945 368 1417 201 380 2093 2912 1374 Guns 7833 | 285 1189 662 . 2557 44 486 . 245 332 1605 . 44 201 . . 183 . Cannons 798 | . . 449 . . . . . . 255 94 . . . . . . . Explosions 1649 | . 147 . . 435 221 . . 682 . 164 . . . . . . . Melee 9264 | . . . . 70 98 589 . 136 . 60 368 1373 . 380 2087 2729 1374 Ramming 32 | . . 4 . . . . . . . 22 . . . . 6 . . Kinetic 7669 | 285 1189 662 . 2431 44 486 . 245 332 1567 . 44 201 . . 183 . Thermal 962 | . . 449 . 126 . . . . 255 132 . . . . . . . Explosive 1649 | . 147 . . 435 221 . . 682 . 164 . . . . . . . Electromagnetic . | . . . . . . . . . . . . . . . . . . Impact . | . . . . . . . . . . . . . . . . . . Slashing 3065 | . . . . 70 98 589 . 136 . 60 . 96 . 380 1157 . 479 Piercing 6199 | . . . . . . . . . . . 368 1277 . . 930 2729 895 Highest Corruption 22 | . . . . 3 3 3 . . . 2 . 13 13 13 22 . . Average Corruption 6 | . . . . 2 3 3 . . . 2 . 8 13 13 17 . . Corruption Purged . | . . . . . . . . . . . . . . . . . . Corruption Blocked 13 | . . . . . . . . . . . . . . . 6 6 1 Effects 172 | . . . . 33 12 28 . . . . . 33 25 11 30 . . Message Errors 41 | . . . . 7 4 7 . . . . . 10 5 1 7 . . Matter Fused 41 | . . . . 11 2 7 . . . . . 6 6 2 7 . . Heat Flow Errors 23 | . . . . 3 1 6 . . . . . 1 5 3 4 . . Energy Discharges 25 | . . . . 5 3 2 . . . . . 4 5 1 5 . . Parts Rejected 2 | . . . . 1 . 1 . . . . . . . . . . . Parts Fused 1 | . . . . . . . . . . . . . 1 . . . . Data Loss (minor) 18 | . . . . 3 1 1 . . . . . 6 3 3 1 . . Data Loss (major) 11 | . . . . 2 . 2 . . . . . 5 . . 2 . . Misfires 1 | . . . . . 1 . . . . . . . . . . . . Alerts 5 | . . . . 1 . 2 . . . . . . . 1 1 . . Misdirections 4 | . . . . . . . . . . . . 1 . . 3 . . Overload Shots . | . . . . . . . . . . . . . . . . . . Overflow Damage 588 | . . . . 31 . 27 . . . 9 71 172 . . 10 228 40 Projectiles 2 | . . . . . . . . . . 2 . . . . . . . Explosions 38 | . . . . 31 . . . . . 7 . . . . . . . Melee 548 | . . . . . . 27 . . . . 71 172 . . 10 228 40 Knockbacks . | . . . . . . . . . . . . . . . . . . Impact . | . . . . . . . . . . . . . . . . . . Kinetic . | . . . . . . . . . . . . . . . . . . Secondary . | . . . . . . . . . . . . . . . . . . Self-Inflicted Damage 121 | . . . . 45 49 . . 16 . 11 . . . . . . . Shots 5 | . . . . 3 1 . . 1 . . . . . . . . . Rammed 7 | . . 1 . . . . . . . 3 2 . . . 1 . . Targets Rammed 10 | . . 1 . . . . . . . 3 2 . . . 4 . . Kicked 3 | . . . . . . . . . . . . . . . 3 . . Crushed . | . . . . . . . . . . . . . . . . . . Highest Temperature 248 | . 40 54 . 248 152 247 . 112 . 37 . 175 217 158 230 10 . Average Temperature 43 | . 9 14 . 50 53 99 . 40 . 13 . 103 96 79 96 10 . Received Heat Transfer 3744 | . 426 69 . 459 117 270 . 315 192 1056 27 111 31 . 198 93 380 Effects 2 | . . . . 1 . . . . . . . . 1 . . . . Energy Bleed 2 | . . . . 1 . . . . . . . . 1 . . . . Siege Activations 1 | . . . . . . . . . . . . . . . . 1 . Total Turns 12 | . . . . . . . . . . . . . . . . 12 . Longest Duration 12 | . . . . . . . . . . . . . . . . 12 . Robots Corrupted . | . . . . . . . . . . . . . . . . . . Combat Hostiles . | . . . . . . . . . . . . . . . . . . Parts Fried 1 | . . . . . . 1 . . . . . . . . . . . Impact Corruptions . | . . . . . . . . . . . . . . . . . . Robots Melted . | . . . . . . . . . . . . . . . . . . Combat Hostiles . | . . . . . . . . . . . . . . . . . . Parts Melted 8 | . . 1 . 1 . . . . . . . . . . 1 . 5 Heat Transferred 1807 | . . 925 . 258 . . . . 400 224 . . . . . . . Parts Sabotaged . | . . . . . . . . . . . . . . . . . . Parts Stolen . | . . . . . . . . . . . . . . . . . . Parts Stripped . | . . . . . . . . . . . . . . . . . . Power Chain Reactions . | . . . . . . . . . . . . . . . . . . Alert | -11 -10 -9 -8 -8 -8 -8 -7 -7 -6 -6 -5 -5 -5 -5 -5 -4 -4 ------- Run | Yrd Mat Mat Mat Gar Mat Gar Fac DSF Fac Gar Fac Ext Cet Arc Hub Fac Gar Peak Influence 1415 | 40 354 276 65 1415 938 1411 744 723 466 429 241 220 190 108 331 248 267 Initial 740 | . 26 49 65 42 689 600 740 520 379 219 195 40 113 26 20 57 145 Average 434 | 16 150 165 65 732 729 1092 743 624 382 322 191 107 143 59 142 136 211 Maximum Alert Level 4 | . 1 1 . 4 3 4 3 3 2 2 1 1 . . 1 1 1 Low Security (%) 42 | 100 70 65 100 13 . . . . . . 23 94 100 100 85 88 30 Level 1 20 | . 29 34 . 11 . . . . 45 94 76 5 . . 14 11 69 Level 2 10 | . . . . 20 21 14 . 75 54 5 . . . . . . . Level 3 13 | . . . . 28 78 27 100 24 . . . . . . . . . Level 4 12 | . . . . 25 . 58 . . . . . . . . . . . Level 5 . | . . . . . . . . . . . . . . . . . . High Security . | . . . . . . . . . . . . . . . . . . Max Security . | . . . . . . . . . . . . . . . . . . Sterilizations 1 | . . . . . . . . 1 . . . . . . . . . Squads Dispatched 29 | . 4 2 . . 5 . . 3 1 . 2 3 . . 5 4 . Investigation 8 | . 2 2 . . . . . . 1 . . 3 . . . . . Extermination 3 | . . . . . . . . . . . . . . . 1 2 . Reinforcement 13 | . 2 . . . 3 . . 3 . . 2 . . . 3 . . Assault 1 | . . . . . . . . . . . . . . . 1 . . Garrison 4 | . . . . . 2 . . . . . . . . . . 2 . Intercept . | . . . . . . . . . . . . . . . . . . Searches Triggered . | . . . . . . . . . . . . . . . . . . Construction Impeded 1 | . . . . . 1 . . . . . . . . . . . . Haulers Reinforced 1 | . . . . . . . . . . . 1 . . . . . . Active Scanning Responses . | . . . . . . . . . . . . . . . . . . Cargo Convoy Interrupts . | . . . . . . . . . . . . . . . . . . Stealth | -11 -10 -9 -8 -8 -8 -8 -7 -7 -6 -6 -5 -5 -5 -5 -5 -4 -4 --------- Run | Yrd Mat Mat Mat Gar Mat Gar Fac DSF Fac Gar Fac Ext Cet Arc Hub Fac Gar Distress Signals 14 | . 2 5 . . 3 . . . . . . 1 2 . 1 . . Communications Jammed . | . . . . . . . . . . . . . . . . . . Distress Signals . | . . . . . . . . . . . . . . . . . . Times Spotted 325 | . 32 21 . 39 27 41 . 19 9 25 7 26 8 13 28 17 13 Peak Tracking Total 16 | . 4 3 . 5 5 6 . 6 4 9 4 4 5 16 8 5 6 Tactical Retreats 24 | . . 1 . 1 . 2 . 7 1 4 1 3 . . 2 2 . Traps | -11 -10 -9 -8 -8 -8 -8 -7 -7 -6 -6 -5 -5 -5 -5 -5 -4 -4 ------- Run | Yrd Mat Mat Mat Gar Mat Gar Fac DSF Fac Gar Fac Ext Cet Arc Hub Fac Gar Traps Triggered 26 | . 3 . . 3 . 2 . 1 4 2 . 6 . . 1 3 1 Indirectly . | . . . . . . . . . . . . . . . . . . Trap Hack Attempts 24 | . . . . . . . . . . . . 24 . . . . . Triggered . | . . . . . . . . . . . . . . . . . . Disarmed . | . . . . . . . . . . . . . . . . . . Reprogrammed 3 | . . . . . . . . . . . . 3 . . . . . Reused . | . . . . . . . . . . . . . . . . . . Traps Extracted . | . . . . . . . . . . . . . . . . . . Installed . | . . . . . . . . . . . . . . . . . . Triggered . | . . . . . . . . . . . . . . . . . . Machines | -11 -10 -9 -8 -8 -8 -8 -7 -7 -6 -6 -5 -5 -5 -5 -5 -4 -4 ---------- Run | Yrd Mat Mat Mat Gar Mat Gar Fac DSF Fac Gar Fac Ext Cet Arc Hub Fac Gar Machines Disabled 25 | . 1 . . 5 . 8 . . 2 1 . 5 1 1 . . 1 Max in Single Turn 2 | . 1 . . 1 . 2 . . 2 1 . 1 1 . . . 1 Garrison Access 1 | . . . . . . . . . . . . . . . 1 . . Garrison Relay 12 | . . . . 5 . 5 . . . 1 . . . . . . 1 Phase Generator 1 | . . . . . . 1 . . . . . . . . . . . Machines Repaired . | . . . . . . . . . . . . . . . . . . Machines Dismantled 7 | . . . . . . 1 . . . . . 5 1 . . . . Machines Sabotaged . | . . . . . . . . . . . . . . . . . . Overloaded Fab Kills . | . . . . . . . . . . . . . . . . . . Hacking | -11 -10 -9 -8 -8 -8 -8 -7 -7 -6 -6 -5 -5 -5 -5 -5 -4 -4 --------- Run | Yrd Mat Mat Mat Gar Mat Gar Fac DSF Fac Gar Fac Ext Cet Arc Hub Fac Gar Machines Accessed 52 | . 6 4 1 2 2 5 2 . 2 1 4 14 1 1 4 3 . Terminals 41 | . 5 2 . 2 1 5 2 . 1 1 2 14 1 . 3 2 . Fabricators . | . . . . . . . . . . . . . . . . . . Repair Stations . | . . . . . . . . . . . . . . . . . . Recycling Units 5 | . 1 2 . . . . . . . . 2 . . . . . . Scanalyzers . | . . . . . . . . . . . . . . . . . . Garrison Access 5 | . . . 1 . 1 . . . 1 . . . . . 1 1 . Total Hacks 131 | . 19 13 1 3 3 8 3 . 3 1 6 28 2 25 9 7 . Successful 68 | . 8 8 1 1 2 1 1 . 1 . 2 9 . 25 5 4 . Failed 63 | . 11 5 . 2 1 7 2 . 2 1 4 19 2 . 4 3 . Catastrophic 22 | . 1 . . 1 1 4 1 . 1 1 2 6 . . 3 1 . Database Lockouts . | . . . . . . . . . . . . . . . . . . Manual 40 | . 19 8 . . 2 . 1 . . . . 8 1 . . 1 . Terminals 90 | . 17 8 . 3 2 8 3 . 2 1 2 28 2 . 8 6 . Fabricators . | . . . . . . . . . . . . . . . . . . Repair Stations . | . . . . . . . . . . . . . . . . . . Recycling Units 11 | . 2 5 . . . . . . . . 4 . . . . . . Scanalyzers . | . . . . . . . . . . . . . . . . . . Garrison Access 5 | . . . 1 . 1 . . . 1 . . . . . 1 1 . Terminal Hacks 48 | . 2 2 . 1 . 1 1 . . . . 9 . 25 4 3 . Record 26 | . . . . . . . . . . . . . . 25 . 1 . Robot Schematic 1 | . . . . . . . . . . . . . . . . 1 . Robot Analysis 6 | . 2 2 . . . . . . . . . 2 . . . . . Prototype ID Bank 1 | . . . . . . . . . . . . 1 . . . . . Open Door 4 | . . . . . . . . . . . . 4 . . . . . Open DSF 1 | . . . . . . . 1 . . . . . . . . . . Branch Access Points 1 | . . . . . . . . . . . . . . . 1 . . Emergency Access Points 2 | . . . . 1 . 1 . . . . . . . . . . . Locate Traps 1 | . . . . . . . . . . . . . . . 1 . . Hauler Manifests 1 | . . . . . . . . . . . . . . . . 1 . Zone Layout 4 | . . . . . . . . . . . . 2 . . 2 . . Fabricator Hacks . | . . . . . . . . . . . . . . . . . . Repair Station Hacks . | . . . . . . . . . . . . . . . . . . Recycling Unit Hacks 6 | . 1 3 . . . . . . . . 2 . . . . . . Process 1 | . . . . . . . . . . . 1 . . . . . . Report Inventory 4 | . 1 2 . . . . . . . . 1 . . . . . . Retrieve Components 1 | . . 1 . . . . . . . . . . . . . . . Scanalyzer . | . . . . . . . . . . . . . . . . . . Garrison Access Hacks 5 | . . . 1 . 1 . . . 1 . . . . . 1 1 . Unlock Access 5 | . . . 1 . 1 . . . 1 . . . . . 1 1 . Unauthorized Hacks 9 | . 5 3 . . 1 . . . . . . . . . . . . Terminals 7 | . 4 2 . . 1 . . . . . . . . . . . . Botnet 7 | . 4 2 . . 1 . . . . . . . . . . . . Fabricators . | . . . . . . . . . . . . . . . . . . Repair Stations . | . . . . . . . . . . . . . . . . . . Recycling Units 2 | . 1 1 . . . . . . . . . . . . . . . Tunnel 2 | . 1 1 . . . . . . . . . . . . . . . Scanalyzers . | . . . . . . . . . . . . . . . . . . Garrison Access . | . . . . . . . . . . . . . . . . . . Data Cores Recovered 2 | . . . . . . . . . . . . 1 . . 1 . . Used . | . . . . . . . . . . . . . . . . . . Hacking Detections 43 | . 5 2 1 1 1 5 2 . 1 1 4 13 1 . 4 2 . Full Trace Events 7 | . 1 1 . . . 1 . . 1 . . 3 . . . . . Feedback Events . | . . . . . . . . . . . . . . . . . . Feedback Blocked . | . . . . . . . . . . . . . . . . . . Robot Schematics Acquired 1 | . . . . . . . . . . . . . . . . 1 . Robots Built . | . . . . . . . . . . . . . . . . . . Authchips . | . . . . . . . . . . . . . . . . . . Time . | . . . . . . . . . . . . . . . . . . Total Robot Build Rating . | . . . . . . . . . . . . . . . . . . Part Schematics Acquired . | . . . . . . . . . . . . . . . . . . Parts Built . | . . . . . . . . . . . . . . . . . . Authchips . | . . . . . . . . . . . . . . . . . . Time . | . . . . . . . . . . . . . . . . . . Total Part Build Rating . | . . . . . . . . . . . . . . . . . . Parts Repaired . | . . . . . . . . . . . . . . . . . . Time . | . . . . . . . . . . . . . . . . . . Parts Recycled . | . . . . . . . . . . . . . . . . . . Recycled Matter 1 | . . . . . . . . . . . 1 . . . . . . Retrieved Matter . | . . . . . . . . . . . . . . . . . . Retrieved Components 7 | . . 7 . . . . . . . . . . . . . . . Parts Scanalyzed . | . . . . . . . . . . . . . . . . . . Part Schematics Acquired . | . . . . . . . . . . . . . . . . . . Parts Damaged . | . . . . . . . . . . . . . . . . . . Bothacking | -11 -10 -9 -8 -8 -8 -8 -7 -7 -6 -6 -5 -5 -5 -5 -5 -4 -4 ------------ Run | Yrd Mat Mat Mat Gar Mat Gar Fac DSF Fac Gar Fac Ext Cet Arc Hub Fac Gar Used RIF Installer 3 | . . . . 1 . 1 . . . 1 . . . . . . . Command Fork 1 | . . . . . . . . . . 1 . . . . . . . Threat Obfuscator 1 | . . . . . . 1 . . . . . . . . . . . Robots Hacked 32 | . . . . 1 11 18 . 1 . . . 1 . . . . . Non-combat 3 | . . . . . 3 . . . . . . . . . . . . Combat 29 | . . . . 1 8 18 . 1 . . . 1 . . . . . Robot Hacks Applied 33 | . . . . 1 12 18 . 1 . . . 1 . . . . . no_distress 1 | . . . . . 1 . . . . . . . . . . . . generate_echo 1 | . . . . . 1 . . . . . . . . . . . . map_walls 1 | . . . . . 1 . . . . . . . . . . . . locate_stockpiles 1 | . . . . . 1 . . . . . . . . . . . . amplify_resonance 3 | . . . . . . 3 . . . . . . . . . . . disable_weapons 2 | . . . . . . 2 . . . . . . . . . . . overwrite_iff 8 | . . . . . 3 4 . 1 . . . . . . . . . formatsys_high 16 | . . . . 1 5 9 . . . . . 1 . . . . . Relay Couplers Released 54 | . . . . 26 . 19 . . . 3 . . . . 2 . 4 Machine Destruction 51 | . . . . 23 . 19 . . . 3 . . . . 2 . 4 Programmers 3 | . . . . 3 . . . . . . . . . . . . . Attached 21 | . . . . 1 7 7 . . . . 4 . . . . . 2 Fabnet Peak Effective % . | . . . . . . . . . . . . . . . . . . Robots Rewired 22 | . . . . 3 . 6 . . . . . 13 . . . . . Allies Hacked 2 | . . . . . . 2 . . . . . . . . . . . Hacks Repelled . | . . . . . . . . . . . . . . . . . . Allies | -11 -10 -9 -8 -8 -8 -8 -7 -7 -6 -6 -5 -5 -5 -5 -5 -4 -4 -------- Run | Yrd Mat Mat Mat Gar Mat Gar Fac DSF Fac Gar Fac Ext Cet Arc Hub Fac Gar Total Allies 65 | . . . . 4 8 19 . 1 . . . 28 5 . . . . Largest Group 10 | . . . . 4 6 8 2 2 . . . 9 10 4 . . . Highest-Rated Group 744 | . . . . 87 107 196 47 56 . . . 373 744 350 . . . Highest-Rated Ally 159 | . . . . 24 24 39 31 40 . . . 159 159 134 . . . Total Orders 5 | . . . . 2 1 2 . . . . . . . . . . . STAY 3 | . . . . 1 1 1 . . . . . . . . . . . FOLLOW 2 | . . . . 1 . 1 . . . . . . . . . . . Ally Attacks 506 | . . . . 15 91 121 2 4 . . . 170 77 26 . . . Total Damage 9845 | . . . . 422 1369 1820 41 92 . . . 3229 2122 750 . . . Kills 77 | . . . . 3 17 19 1 2 . . . 22 10 3 . . . Allies Corrupted 2 | . . . . . . . . . . . . 1 1 . . . . Allies Melted 2 | . . . . . 1 1 . . . . . . . . . . . Intel | -11 -10 -9 -8 -8 -8 -8 -7 -7 -6 -6 -5 -5 -5 -5 -5 -4 -4 ------- Run | Yrd Mat Mat Mat Gar Mat Gar Fac DSF Fac Gar Fac Ext Cet Arc Hub Fac Gar Robot Analysis Total 5 | . 2 2 . . . . . . . . . 1 . . . . . Derelict Logs Recovered . | . . . . . . . . . . . . . . . . . . Drone Launches . | . . . . . . . . . . . . . . . . . . Drone Recoveries . | . . . . . . . . . . . . . . . . . . Exploration | -11 -10 -9 -8 -8 -8 -8 -7 -7 -6 -6 -5 -5 -5 -5 -5 -4 -4 ------------- Run | Yrd Mat Mat Mat Gar Mat Gar Fac DSF Fac Gar Fac Ext Cet Arc Hub Fac Gar Turns Passed 14272 | 235 1741 829 95 2139 569 2080 242 436 581 738 472 1325 567 305 700 761 457 Spaces Moved 7505 | 127 719 245 52 1077 286 1043 164 184 276 402 463 797 244 236 378 530 282 Core 451 | 8 . . . . . . . . . 112 293 . . . 1 18 19 Treads 3362 | 8 644 245 52 1077 286 890 . . . . . . 1 . . 60 99 Legs 1696 | 111 75 . . . . . . . . . . 625 243 236 377 . 29 Wheels 1067 | . . . . . . 153 164 184 276 290 . . . . . . . Hover 342 | . . . . . . . . . . . 170 172 . . . . . Flight 587 | . . . . . . . . . . . . . . . . 452 135 Fastest Speed 27 | 50 120 160 160 160 155 135 135 135 115 50 50 56 120 120 50 30 27 Average Speed 129 | 118 155 160 160 160 162 164 147 147 137 96 69 109 120 120 119 52 94 Slowest Speed 400 | 160 240 160 160 160 170 170 150 150 165 400 250 180 160 120 120 160 350 Overloaded Moves . | . . . . . . . . . . . . . . . . . . Propulsion Burnouts . | . . . . . . . . . . . . . . . . . . Robots Hopped . | . . . . . . . . . . . . . . . . . . Cave-ins Triggered 1 | . . . . . . . . . . . . 1 . . . . . Exploration Rate (%) 45 | 5 89 29 4 91 29 98 7 93 8 30 10 65 87 100 40 14 17 Regions Visited 17 Branch Regions 4 Pre-discovered Areas 2 | . 1 1 . . . . . . . . . . . . . . . Known Exits Taken 10 | . . . 1 . 1 . 1 . 1 . 1 1 1 1 1 1 . Unknown Exits Taken 3 | 1 1 1 . . . . . . . . . . . . . . . Scrap Searched . | . . . . . . . . . . . . . . . . . . Spaces Dug 30 | . 4 . . 1 . 8 . . . 3 . 11 . 1 2 . . Terrain Destroyed 192 | . 14 . . 33 4 81 . 23 6 9 . 11 5 1 2 3 . Melee 25 | . . . . . . 8 . . . 3 . 11 . 1 2 . . Projectile 22 | . 4 . . 2 . . . . 6 2 . . 5 . . 3 . AOE 144 | . 10 . . 31 4 73 . 23 . 3 . . . . . . . Terrain Rammed . | . . . . . . . . . . . . . . . . . . Walls Destroyed . | . . . . . . . . . . . . . . . . . . Machines Disabled . | . . . . . . . . . . . . . . . . . . Actions | -11 -10 -9 -8 -8 -8 -8 -7 -7 -6 -6 -5 -5 -5 -5 -5 -4 -4 --------- Run | Yrd Mat Mat Mat Gar Mat Gar Fac DSF Fac Gar Fac Ext Cet Arc Hub Fac Gar Total 10765 | 171 1163 598 64 1317 371 1258 164 312 446 635 592 1111 493 252 533 896 389 Wait 1691 | 1 304 271 . 33 32 27 . 71 127 123 92 101 184 . 64 238 23 Move 7486 | 126 718 244 51 1076 285 1041 163 183 275 401 462 795 243 235 377 529 282 Hop . | . . . . . . . . . . . . . . . . . . Pick Up 138 | 12 18 9 3 21 3 18 . 3 6 6 5 6 5 3 6 5 9 Fast Attach 129 | 2 5 2 4 7 1 4 1 6 10 7 11 14 9 2 12 23 9 Attach 62 | 5 2 4 . 3 2 4 . 3 4 7 7 3 1 1 5 3 8 Detach 4 | . . . . . . . . 1 . 1 2 . . . . . . Swap 124 | 2 11 13 1 32 10 8 . 1 3 3 . 24 13 2 1 . . Drop 165 | 1 10 12 5 34 6 15 . 3 8 1 3 13 16 5 12 15 6 Fire 481 | 22 95 42 . 85 27 84 . 30 13 60 . 2 12 . . 9 . Melee 306 | . . . . 17 3 47 . 3 . 7 8 68 . 4 52 56 41 Ram 6 | . . . . . . . . . . 3 2 . . . 1 . . Kick 3 | . . . . . . . . . . . . . . . 3 . . Crush 1 | . . 1 . . . . . . . . . . . . . . . Escape Stasis 74 | . . . . 2 . . . 8 . 16 . 19 . . . 18 11 Rewire 12 | . . . . 7 2 2 . . . . . 1 . . . . . Trap 24 | . . . . . . . . . . . . 24 . . . . . Miscellaneous 59 | . . . . . . 8 . . . . . 41 10 . . . . Route ------- -11/Scrapyard -10/Materials (discovered 4 exits: *Mat x3 / [*Min]) -9/Materials -8/Materials -8/Garrison (discovered 4 exits: *Mat x4) -8/Materials (discovered 2 exits: *Fac / Gar) -8/Garrison (discovered 3 exits: *Fac x3) -7/Factory -7/DSF -6/Factory -6/Garrison -5/Factory -5/Extension (discovered 2 exits: *Fac / *Cet) -5/Cetus (discovered 2 exits: *Fac / *Arc) -5/Archives (discovered 3 exits: *Fac / *Hub x2) -5/Hub_04(d) (discovered 2 exits: *Fac x2) -4/Factory -4/Garrison History --------- Turn | Location | Event 8 | -11/Scrapyard | Discovered new exit (range 15) 236 | -11/Scrapyard | Entered Materials 301 | -10/Materials | Build established: Mutant 570 | -10/Materials | Discovered new exit (range 8) 728 | -10/Materials | Discovered new exit (range 5) 1034 | -10/Materials | Discovered new exit (range 5) 1858 | -10/Materials | Discovered new exit (range 16) 1977 | -10/Materials | Entered another Materials area 1977 | -9/Materials | Evolved 2 slots: Propulsion x1, Weapon x1 2599 | -9/Materials | Build established: Gunner 2624 | -9/Materials | Discovered new exit (range 16) 2806 | -9/Materials | Entered another Materials area 2806 | -8/Materials | Evolved 2 slots: Utility x2 2899 | -8/Materials | Identified exit to Garrison 2901 | -8/Materials | Entered Garrison 3087 | -8/Garrison | Triggered checkpoint 3189 | -8/Garrison | Garrison Relay disabled 3245 | -8/Garrison | Triggered checkpoint 3427 | -8/Garrison | Triggered checkpoint 3571 | -8/Garrison | Discovered new exit (range 10) 3617 | -8/Garrison | Triggered checkpoint 3662 | -8/Garrison | Garrison Relay disabled 3729 | -8/Garrison | Triggered checkpoint 3777 | -8/Garrison | Discovered new exit (range 12) 3786 | -8/Garrison | Build established: Scavenger-Tank 3790 | -8/Garrison | Installed Relay Interface Framework 3877 | -8/Garrison | Garrison Relay disabled 3963 | -8/Garrison | Triggered checkpoint 4231 | -8/Garrison | Triggered checkpoint 4312 | -8/Garrison | Discovered new exit (range 16) 4315 | -8/Garrison | Triggered checkpoint 4333 | -8/Garrison | Discovered new exit (range 5) 4431 | -8/Garrison | Triggered checkpoint 4445 | -8/Garrison | Garrison Relay disabled 4484 | -8/Garrison | Garrison Relay disabled 4593 | -8/Garrison | Triggered checkpoint 5031 | -8/Garrison | Build established: Bothacker-Mutant 5040 | -8/Garrison | Entered Materials 5040 | -8/Materials | Accompanied by 1 ally 5465 | -8/Materials | Discovered new exit (range 14) 5496 | -8/Materials | Garrison activated, responded to threat 5589 | -8/Materials | Identified exit to Garrison 5601 | -8/Materials | Lost 3 allies 5609 | -8/Materials | Entered Garrison 5609 | -8/Garrison | Accompanied by 1 ally 5610 | -8/Garrison | Core integrity fell below 50% 5632 | -8/Garrison | Expanded RIF knowledge: Threat Obfuscation 5693 | -8/Garrison | Phase Generator disabled 5811 | -8/Garrison | Triggered checkpoint 5939 | -8/Garrison | Garrison Relay disabled 6009 | -8/Garrison | Triggered checkpoint 6081 | -8/Garrison | Triggered checkpoint 6113 | -8/Garrison | Garrison Relay disabled 6224 | -8/Garrison | Discovered new exit (range 8) 6415 | -8/Garrison | Triggered checkpoint 6449 | -8/Garrison | Triggered checkpoint 6468 | -8/Garrison | Garrison Relay disabled 6564 | -8/Garrison | Discovered new exit (range 10) 6609 | -8/Garrison | Triggered checkpoint 6639 | -8/Garrison | Triggered checkpoint 6656 | -8/Garrison | Garrison Relay disabled 6764 | -8/Garrison | Lost 5 allies 7051 | -8/Garrison | Garrison Relay disabled 7061 | -8/Garrison | Triggered checkpoint 7121 | -8/Garrison | Lost 3 allies 7142 | -8/Garrison | Discovered new exit (range 12) 7689 | -8/Garrison | Entered Factory 7689 | -7/Factory | Accompanied by 2 allies 7689 | -7/Factory | Evolved 2 slots: Utility x2 7916 | -7/Factory | Identified exit to DSF 7931 | -7/Factory | Entered DSF 7931 | -7/DSF | Accompanied by 2 allies 7960 | -7/DSF | Additional patrols routed to DSF 8191 | -7/DSF | Sterilization system engaged 8211 | -7/DSF | Ambient heat levels rising (+10) 8226 | -7/DSF | Ambient heat levels rising (+10) 8241 | -7/DSF | Ambient heat levels rising (+10) 8245 | -7/DSF | Discovered new exit (range 14) 8256 | -7/DSF | Ambient heat levels rising (+10) 8271 | -7/DSF | Ambient heat levels rising (+10) 8286 | -7/DSF | Ambient heat levels rising (+10) 8301 | -7/DSF | Ambient heat levels rising (+10) 8316 | -7/DSF | Ambient heat levels rising (+10) 8331 | -7/DSF | Ambient heat levels rising (+10) 8346 | -7/DSF | Ambient heat levels rising (+10) 8361 | -7/DSF | Ambient heat levels rising (+10) 8367 | -7/DSF | Entered Factory 8367 | -6/Factory | Evolved 2 slots: Utility x2 8946 | -6/Factory | Identified exit to Garrison 8948 | -6/Factory | Entered Garrison 9107 | -6/Garrison | Triggered checkpoint 9186 | -6/Garrison | Destroyed 8 combat bots 9217 | -6/Garrison | Lost 8 parts (1p1n3u3w) 9281 | -6/Garrison | Triggered checkpoint 9389 | -6/Garrison | Expanded RIF knowledge: Command Fork 9400 | -6/Garrison | Garrison Relay disabled 9515 | -6/Garrison | Spotted B-75 Beast 9546 | -6/Garrison | Triggered checkpoint 9606 | -6/Garrison | Core integrity fell below 50% 9636 | -6/Garrison | Core integrity fell below 20% 9668 | -6/Garrison | Lost 17 parts (2p2n5u8w) 9681 | -6/Garrison | Discovered new exit (range 12) 9686 | -6/Garrison | Entered Factory 9686 | -5/Factory | Evolved 2 slots: Utility x2 9846 | -5/Factory | Build established: Mutant 10118 | -5/Factory | Discovered new exit (range 13) 10157 | -5/Factory | Identified exit to Extension 10158 | -5/Factory | Entered Extension 10368 | -5/Extension | Build established: Scavenger-Mutant 10401 | -5/Extension | Rescued a captive Derelict 10538 | -5/Extension | Rescued a captive Derelict 10539 | -5/Extension | Rescued a captive Derelict 10625 | -5/Extension | Rescued a captive Derelict 10626 | -5/Extension | Rescued a captive Derelict 10661 | -5/Extension | Rescued a captive Derelict 10661 | -5/Extension | Rescued a captive Derelict 10774 | -5/Extension | Lost 3 parts (1n2u) 11040 | -5/Extension | Crushed by falling debris 11041 | -5/Extension | System corruption reached 10% 11071 | -5/Extension | Lost 3 parts (2u1w) 11073 | -5/Extension | Lost 6 allies 11162 | -5/Extension | Rescued a captive Derelict 11163 | -5/Extension | Rescued a captive Derelict 11197 | -5/Extension | Rescued a captive Derelict 11312 | -5/Extension | Lost 4 allies 11347 | -5/Extension | Rescued a captive Derelict 11347 | -5/Extension | Rescued a captive Derelict 11369 | -5/Extension | Build established: Scavenger-Gladiator 11386 | -5/Extension | Rescued A7 11419 | -5/Extension | Rescued a captive Derelict 11456 | -5/Extension | Discovered new exit (range 10) 11457 | -5/Extension | Discovered new exit (range 6) 11464 | -5/Extension | Identified exit to Cetus 11472 | -5/Extension | Identified exit to Factory 11483 | -5/Extension | Entered Cetus 11483 | -5/Cetus | Accompanied by 8 allies (A7) 11488 | -5/Cetus | Acquired a Cetus Manufacturing Module code from A7 11500 | -5/Cetus | Spotted Cetus Guard 11500 | -5/Cetus | Spotted Cetus Guard 11501 | -5/Cetus | Spotted Cetus Guard 11505 | -5/Cetus | Allies destroyed Cetus Guard 11507 | -5/Cetus | Spotted Cetus Guard 11517 | -5/Cetus | Allies destroyed Cetus Guard 11530 | -5/Cetus | Allies destroyed Cetus Guard 11530 | -5/Cetus | Allies destroyed Cetus Guard 11561 | -5/Cetus | Lost 3 allies 11610 | -5/Cetus | Escorted A7 to Cetus Mainframe 11698 | -5/Cetus | Started Cetus Manufacturing Module 11723 | -5/Cetus | Manufactured an Enhanced Grunt 11748 | -5/Cetus | Manufactured an Enhanced Grunt 11773 | -5/Cetus | Manufactured an Enhanced Grunt 11798 | -5/Cetus | Manufactured an Enhanced Grunt 11823 | -5/Cetus | Manufactured an Enhanced Grunt 11846 | -5/Cetus | Discovered new exit (range 22) 11888 | -5/Cetus | Spotted Cetus Guard 11890 | -5/Cetus | Spotted Cetus Guard 11894 | -5/Cetus | Spotted Cetus Guard 11897 | -5/Cetus | Spotted Cetus Guard 11901 | -5/Cetus | Destroyed Cetus Guard 11903 | -5/Cetus | Discovered exit to Factory (range 21) 11910 | -5/Cetus | Allies destroyed Cetus Guard 11920 | -5/Cetus | Allies destroyed Cetus Guard 11928 | -5/Cetus | Allies destroyed Cetus Guard 11929 | -5/Cetus | Met Revision 17 11957 | -5/Cetus | Lost 6 allies 11988 | -5/Cetus | Found Prototype Device 11988 | -5/Cetus | Identified Exp. Thermal Shield 12018 | -5/Cetus | Identified exit to Archives 12050 | -5/Cetus | Entered Archives 12050 | -5/Archives | Accompanied by 4 allies (A7) 12055 | -5/Archives | Received a hacking code to weaken MAIN.C 12082 | -5/Archives | Met Zhirov 12088 | -5/Archives | Reinforcements dispatched to Archives 12111 | -5/Archives | Unable to access archive contents 12133 | -5/Archives | Reinforcements dispatched to Archives 12134 | -5/Archives | Read partially decrypted archive contents 12135 | -5/Archives | Zhirov warped through subspace 12136 | -5/Archives | Discovered new exit (range 16) 12153 | -5/Archives | Zhirov detonated Archives 12177 | -5/Archives | Discovered new exit (range 12) 12181 | -5/Archives | Lost 3 allies 12199 | -5/Archives | Identified exit to Hub_04(d) 12261 | -5/Archives | Discovered exit to Factory (range 16) 12355 | -5/Archives | Entered Hub_04(d) 12355 | -5/Hub_04(d) | Discovered exit to Factory (range 10) 12601 | -5/Hub_04(d) | Found Prototype Launcher 12601 | -5/Hub_04(d) | Identified Scatter Rocket Array 12645 | -5/Hub_04(d) | Identified exit to Garrison 12798 | -5/Hub_04(d) | Lost 4 parts (1p2u1w) 12806 | -5/Hub_04(d) | Destroyed 7 combat bots 12912 | -5/Hub_04(d) | Discovered exit to Factory (range 16) 13040 | -5/Hub_04(d) | Core integrity fell below 50% 13055 | -5/Hub_04(d) | Entered Factory 13055 | -4/Factory | Evolved 2 slots: Propulsion x1, Weapon x1 13082 | -4/Factory | Lost 5 parts (1p1n1u2w) 13589 | -4/Factory | Found Prototype Device 13589 | -4/Factory | Identified Adv. EM Disruption Field 13641 | -4/Factory | Garrison activated, responded to threat 13815 | -4/Factory | Identified exit to Garrison 13816 | -4/Factory | Entered Garrison 13854 | -4/Garrison | Triggered checkpoint 13922 | -4/Garrison | Lost 5 parts (1p2n1u1w) 13939 | -4/Garrison | Core integrity fell below 50% 13960 | -4/Garrison | Core integrity fell below 20% 13993 | -4/Garrison | Lost 4 parts (1n1u2w) 14040 | -4/Garrison | Garrison Relay disabled 14273 | -4/Garrison | Destroyed by G-67 Veteran with Field Laser Last Messages --------------- 14069_ Sneak attack on A-27 Freighter. 14069_ Spear follow-up attack on A-27 Freighter. 14069_ A-27 Freighter destroyed. 14074_ Dropped Flexi-carbon Leg. 14079_ Acquired Imp. Heavy Treads. 14087_ Sneak attack on A-27 Freighter. 14090_ Spear follow-up attack on A-27 Freighter. 14090_ A-27 Freighter destroyed. 14095_ Acquired 40 matter. 14152_ Discarded Imp. Target Analyzer. 14153_ Acquired Imp. Heat Sink. 14255_ G-67 Veteran Flexi-carbon Leg severed. 14258_ G-67 Veteran Field Laser severed. 14258_ Carbide Saw follow-up attack on G-67 Veteran. 14261_ Spear follow-up attack on G-67 Veteran. 14261_ G-67 Veteran destroyed. 14270_ B-60 Warrior Imp. Treads severed. 14270_ Spear follow-up attack on B-60 Warrior. 14271_ Carbide Saw destroyed. Map ----- +----------------------------------------------------+ | ?????????????????????????????????????????????????? | | ?????????????????????????????????????????????????? | | ?????????????????????????????????????????????????? | | ?????????????????????????????????????????????????? | | ?????????????????????????????????????????????????? | | ?????????????????????????????????????????????????? | | ?????????????????????????????????????????????????? | | ?????????????????????????????????????????????????? | | ?????????????????????????????????????????????????? | | ?????????????????????????????????????????????????? | | ?????????????????????????????????????????????????? | | ?????????????????????????????????????????????????? | | ?????????????????????????????????????????????????? | | ?????????????????????????????????????????????????? | | ???????#?????????????????????????????????????????? | | ???????# ????????????????????????????????????????? | | ??????? ??????????????????????????????????????? | | ???????? ?????????????????????????????????????? | | ?????????? ????????????????????????????????????? | | ???????????? ??????????????????????????????????? | | ?????????????# ?????????????????????????????????? | | ???????# ## ##############??????????????????? | | ???? / ???????????????????? | | ???? !%gg ????????????????????? | | ???? ^^ ########b[#?????????????????????? | | ???????#""""#???????????#@ #?????????????????????? | | ????????????????????????# #?????????????????????? | | ????????????????????????# #?????????????????????? | | ????????????????????????# #?????????????????????? | | ????????????????????????# #?????????????????????? | | ????????????????????????# #?????????????????????? | | ????????????????????????# #?????????????????????? | | ????????????????????????# #?????????????????????? | | ????????????????????????# #?????????????????????? | | ????????????????????????# #?????????????????????? | | ????????????????????????# #?????????????????????? | | ????????????????????????# #?????????????????????? | | ????????????????????????# #?????????????????????? | | ????????????????????????# #?????????????????????? | | ????????????????????????# #?????????????????????? | | ????????????????????????# #???????#####?????????? | | ????????????????????????# #???????# #?????????? | | ????????????????????????# ######### ########### | | ????????????????????????# # | | ????????????????????????# # | | ????????????????????????####################### # | | ??????????????????????????????????????????????# # | | ????????????????????????????????????????????### # | | ????????????????????????????????????????????# # | | ????????????????????????????????????????????# [!# | +----------------------------------------------------+ Best States ------------- Heat Dissipation 110 Energy Generation 25 Energy Capacity 350 Matter Stores 300 Matter Capacity 300 Sight Range 22 Terrain Scan Density 10 Additional Mass Support 16 Corruption Block 15 Armor Coverage 675 Resistance: EM 50 Weapon Shielding 33 Evasion (%) 72 Targeting Accuracy 5 Melee Accuracy 13 Target Analysis 9 Recoil Reduction 4 Matter Filtering 30 Offensive Hacking 20 Defensive Hacking 24 Relay Coupler Types 4 Relay Coupler Value 121 Item Schematics ----------------- None Robot Schematics ------------------ O-32 Director | -4/Factory | Hacked Fabricated ------------ Nothing Alien Tech Used ----------------- None Achievements -------------- None Challenges ------------ None Game ------ Seed FactoryLightpackStorage Manual? 0 Play Time 02:13:19 Cumulative 76.2 hours Start 2024.11.06 @ 02:06:42 End 2024.11.07 @ 03:53:59 Sessions 3 Manual Loads 0 Difficulty Rogue Special Mode None Game No. 93 Rogue 93 Adventurer 0 Explorer 0 Win Type - Total 1 Types 1/0/0/0/0/0/0/0/0 Lore% 52 Gallery% 54 Achievement% 50 Wizard Run 0 Options --------- Layout 2 ASCII 0 Keyboard 0 Movement Mouse Keybinds 0 Fullscreen 1 Font 32/SmallcapsGlow Map View 50x44 Zoom Use 0% Tactical HUD 1 Map Filters NONE Filters NONE Steam 1 RUN: 52a806de-5fd5-4a67-b0a3-76c052b83678